fUSD/lending_fUSD_20250416
["ID","MTS","AMOUNT","RATE_DAILY","PERIOD"]
[358141015,1744765790979,-500.0,0.00049315,120]
[358141016,1744765791011,-533.01371426,0.00049315,120]
[358141017,1744765791043,-531.44597941,0.00049315,120]
[358141018,1744765791075,-500.0,0.00049315,120]
[358141019,1744765791111,-500.0,0.00049315,120]
[358141020,1744765791143,-500.0,0.00049315,30]
[358141021,1744765791177,-500.0,0.00049315,120]
[358141022,1744765791209,-500.0,0.00049315,120]
[358141023,1744765791241,-500.0,0.00049315,120]
[358141024,1744765791274,-896.66,0.00049315,120]
[358141025,1744765791311,-290.3,0.00049315,120]
[358141026,1744765791344,-500.0,0.00049315,120]
[358141027,1744765791378,-500.0,0.00049315,120]
[358141028,1744765791411,-500.0,0.00049315,120]
[358141029,1744765791445,-500.0,0.00049315,120]
[358141030,1744765791478,-500.0,0.00049315,120]
[358141031,1744765791511,-922.97,0.00049315,120]
[358141032,1744765791542,-500.0,0.00049315,120]
[358141033,1744765791574,-500.0,0.00049315,120]
[358141034,1744765791607,-500.0,0.00049315,120]
[358141035,1744765791639,-1285.45,0.00049315,120]
[358141036,1744765791671,-660.47,0.00049315,120]
[358141037,1744765791935,-500.0,0.00049315,120]
[358141038,1744765791973,-500.0,0.00049315,120]
[358141039,1744765792002,-404.54197422,0.00049315,120]
[358141040,1744765792028,-1816.87,0.00049315,118]
[358141041,1744765792055,-500.0,0.00049315,120]
[358141042,1744765792081,-500.0,0.00049315,120]
[358141043,1744765792108,-500.0,0.00049315,120]
[358141044,1744765792133,-237.63474249,0.00049315,120]
[358141045,1744765792159,-500.0,0.00049315,120]
[358141046,1744765792185,-665.4,0.00049315,120]
[358141047,1744765792211,-500.0,0.00049315,120]
[358141048,1744765792235,-520.40143909,0.00049315,120]
[358141049,1744765792261,-500.0,0.00049315,120]
[358141050,1744765792290,-2921.02,0.00049315,120]
[358141051,1744765792317,-500.0,0.00049315,120]
[358141052,1744765792344,-500.0,0.00049315,120]
[358141053,1744765792370,-500.0,0.00049315,120]
[358141054,1744765792396,-500.0,0.00049315,120]
[358141055,1744765792423,-500.0,0.00049315,120]
[358141056,1744765792447,-500.0,0.00049315,120]
[358141057,1744765792472,-500.0,0.00049315,30]
[358141058,1744765792498,-500.0,0.00049315,120]
[358141059,1744765792523,-500.0,0.00049315,120]
[358141060,1744765792548,-500.0,0.00049315,120]
[358141061,1744765792574,-500.0,0.00049315,120]
[358141062,1744765792600,-500.0,0.00049315,120]
[358141063,1744765792625,-500.0,0.00049315,120]
[358141064,1744765792650,-587.30127111,0.00049315,120]
[358141065,1744765792675,-500.0,0.00049315,120]
[358141066,1744765792705,-500.0,0.00049315,120]
[358141067,1744765792731,-500.0,0.00049315,120]
[358141068,1744765792758,-522.78906223,0.00049315,120]
[358141069,1744765792784,-500.0,0.00049315,120]
[358141070,1744765792811,-500.0,0.00049315,120]
[358141071,1744765792838,-500.0,0.00049315,120]
[358141072,1744765792865,-500.0,0.00049315,120]
[358141073,1744765792892,-206.90168754,0.00049315,120]
[358141074,1744765792919,-500.0,0.00049315,120]
[358141075,1744765792944,-164.2344533,0.00049315,120]
[358141076,1744765792970,-500.0,0.00049315,120]
[358141077,1744765792998,-500.0,0.00049315,120]
[358141078,1744765793026,-500.0,0.00049315,120]
[358141079,1744765793053,-519.06454541,0.00049315,120]
[358141080,1744765793080,-500.0,0.00049315,120]
[358141081,1744765793106,-500.0,0.00049315,120]
[358141082,1744765793132,-500.0,0.00049315,120]
[358141083,1744765793159,-591.47,0.00049315,120]
[358141084,1744765793185,-816.72,0.00049315,120]
[358141085,1744765793211,-500.0,0.00049315,120]
[358141086,1744765793236,-944.37,0.00049315,120]
[358141087,1744765793262,-500.0,0.00049315,120]
[358141088,1744765793287,-500.50298585,0.00049315,120]
[358141089,1744765793313,-500.0,0.00049315,120]
[358141090,1744765793339,-500.0,0.00049315,120]
[358141091,1744765793364,-500.0,0.00049315,120]
[358141092,1744765793391,-500.0,0.00049315,120]
[358141093,1744765793416,-374.34867785,0.00049315,120]
[358141094,1744765793442,-500.0,0.00049315,120]
[358141095,1744765793468,-500.0,0.00049315,120]
[358141096,1744765793494,-1386.92,0.00049315,120]
[358141097,1744765793519,-505.40350354,0.00049315,120]
[358141098,1744765793545,-500.0,0.00049315,120]
[358141099,1744765793570,-500.0,0.00049315,120]
[358141100,1744765793597,-500.0,0.00049315,120]
[358141101,1744765793624,-1181.75,0.00049315,120]
[358141102,1744765793649,-500.0,0.00049315,120]
[358141103,1744765793675,-1034.03,0.00049315,120]
[358141104,1744765793704,-500.0,0.00049315,120]
[358141105,1744765793731,-500.0,0.00049315,120]
[358141106,1744765793758,-500.0,0.00049315,120]
[358141107,1744765793783,-500.0,0.00049315,120]
[358141108,1744765793811,-669.94,0.00049315,120]
[358141109,1744765793837,-500.0,0.00049315,120]
[358141110,1744765793863,-500.0,0.00049315,120]
[358141111,1744765793890,-500.0,0.00049315,120]
[358141112,1744765793915,-500.0,0.00049315,120]
[358141113,1744765793941,-500.0,0.00049315,120]
[358141114,1744765793967,-510.61,0.00049315,120]
[358141115,1744765793991,-500.0,0.00049315,120]
[358141116,1744765794025,-1912.27,0.00049315,120]
[358141117,1744765794050,-509.50609741,0.00049315,120]
[358141118,1744765794075,-500.0,0.00049315,120]
[358141119,1744765794106,-899.37,0.00049315,120]
[358141120,1744765794134,-500.0,0.00049315,120]
[358141121,1744765794161,-500.0,0.00049315,120]
[358141122,1744765794186,-500.0,0.00049315,120]
[358141123,1744765794213,-500.0,0.00049315,120]
[358141124,1744765794239,-500.0,0.00049315,120]
[358141125,1744765794266,-500.0,0.00049315,120]
[358141126,1744765794292,-595.13633689,0.00049315,120]
[358141127,1744765794318,-500.0,0.00049315,120]
[358141128,1744765794344,-1831.65,0.00049315,120]
[358141129,1744765794369,-500.0,0.00049315,120]
[358141130,1744765794585,-302.0629844,0.00049315,120]
[358141131,1744765794613,-500.0,0.00049315,120]
[358141132,1744765794641,-500.0,0.00049315,120]
[358141133,1744765794668,-1505.73,0.00049315,120]
[358141134,1744765794696,-500.0,0.00049315,120]
[358141135,1744765794725,-500.0,0.00049315,120]
[358141136,1744765794753,-500.0,0.00049315,120]
[358141137,1744765794779,-500.0,0.00049315,120]
[358141138,1744765794806,-1000.0,0.00049315,120]
[358141139,1744765794833,-535.1,0.00049315,120]
[358141140,1744765794859,-500.0,0.00049315,120]
[358141141,1744765794886,-500.0,0.00049315,120]
[358141142,1744765794913,-500.0,0.00049315,120]
[358141143,1744765794939,-767.28,0.00049315,120]
[358141144,1744765794965,-687.0,0.00049315,120]
[358141145,1744765794990,-1013.49,0.00049315,120]
[358141146,1744765795020,-500.0,0.00049315,120]
[358141147,1744765795047,-500.0,0.00049315,120]
[358141148,1744765795073,-500.0,0.00049315,120]
[358141149,1744765795100,-500.0,0.00049315,120]
[358141150,1744765795127,-529.10734705,0.00049315,120]
[358141151,1744765795153,-500.0,0.00049315,120]
[358141152,1744765795178,-500.0,0.00049315,120]
[358141153,1744765795203,-500.0,0.00049315,120]
[358141154,1744765795229,-500.0,0.00049315,120]
[358141155,1744765795255,-500.0,0.00049315,120]
[358141156,1744765795280,-1174.39,0.00049315,120]
[358141157,1744765795305,-3198.67,0.00049315,30]
[358141158,1744765795331,-300.0,0.00049315,30]
[358141159,1744765795355,-610.62,0.00049315,60]
[358141160,1744765795381,-150.0,0.00049321,120]
[358141161,1744765795406,-726.29756128,0.00049342,120]
[358141162,1744765795431,-305.77080733,0.0004937,30]
[358141163,1744765795456,-214.54507832,0.0004937,30]
[358141164,1744765795481,-150.0,0.00049373,30]
[358141165,1744765795506,-2650.63,0.00049384,30]
[358141166,1744765795531,-150.0,0.00049391,30]
[358141167,1744765795556,-150.0,0.000494,120]
[358141168,1744765795586,-183.71214,0.000494,120]
[358141169,1744765795612,-500.0,0.000494,120]
[358141170,1744765795636,-350.0,0.000494,120]
[358141171,1744765795661,-1000.0,0.00049401,120]
[358141172,1744765795688,-305.77080733,0.00049425,30]
[358141173,1744765795716,-214.54507832,0.00049425,30]
[358141174,1744765795742,-150.0,0.00049431,30]
[358141175,1744765795770,-1068.0,0.00049452,30]
[358141176,1744765795798,-209.0,0.0004946,30]
[358141177,1744765795824,-150.0,0.00049467,30]
[358141178,1744765795852,-150.0,0.00049467,30]
[358141179,1744765795879,-305.77080733,0.00049481,30]
[358141180,1744765795912,-214.54507832,0.00049481,30]
[358141181,1744765795940,-150.0,0.00049489,30]
[358141182,1744765795969,-1624.47993356,0.000495,120]
[358141183,1744765795996,-391.78,0.00049532,30]
[358141184,1744765796027,-305.77080733,0.00049536,30]
[358141185,1744765796055,-214.54507832,0.00049536,30]
[358141186,1744765796081,-150.0,0.00049543,30]
[358141187,1744765796107,-150.0,0.00049548,30]
[358141188,1744765796133,-2649.94,0.00049563,30]
[358141189,1744765796161,-702.96,0.00049589,120]
[358141190,1744765796189,-500.0,0.00049589,120]
[358141191,1744765796216,-500.0,0.00049589,120]
[358141192,1744765796245,-624.75,0.00049589,120]
[358141193,1744765796271,-2000.0,0.00049589,120]
[358141194,1744765796299,-3000.0,0.00049589,120]
[358141195,1744765796326,-500.0,0.00049589,120]
[358141196,1744765796354,-500.0,0.00049589,120]
[358141197,1744765796380,-500.0,0.00049589,120]
[358141198,1744765796406,-500.0,0.00049589,120]
[358141199,1744765796433,-500.0,0.00049589,120]
[358141200,1744765796460,-500.0,0.00049589,120]
[358141201,1744765796487,-500.0,0.00049589,120]
[358141202,1744765796512,-500.0,0.00049589,120]
[358141203,1744765796544,-540.53604248,0.00049589,120]
[358141204,1744765796571,-500.0,0.00049589,120]
[358141205,1744765796598,-500.0,0.00049589,120]
[358141206,1744765796624,-500.0,0.00049589,120]
[358141207,1744765796651,-500.0,0.00049589,120]
[358141208,1744765796679,-500.0,0.00049589,120]
[358141209,1744765796710,-500.0,0.00049589,120]
[358141210,1744765796738,-500.0,0.00049589,120]
[358141211,1744765796766,-500.0,0.00049589,120]
[358141212,1744765796793,-500.0,0.00049589,120]
[358141213,1744765796821,-500.0,0.00049589,120]
[358141214,1744765796850,-526.02163594,0.00049589,120]
[358141215,1744765796877,-508.49270304,0.00049589,120]
[358141216,1744765796904,-249.78650629,0.00049589,120]
[358141217,1744765796933,-500.0,0.00049589,120]
[358141218,1744765796960,-500.0,0.00049589,120]
[358141219,1744765796988,-500.0,0.00049589,120]
[358141220,1744765797020,-500.0,0.00049589,120]
[358141221,1744765797049,-500.0,0.00049589,120]
[358141222,1744765797078,-500.0,0.00049589,120]
[358141223,1744765797107,-500.0,0.00049589,120]
[358141224,1744765797137,-637.67925039,0.00049589,120]
[358141225,1744765797354,-500.0,0.00049589,120]
[358141226,1744765797383,-500.0,0.00049589,120]
[358141227,1744765797410,-500.0,0.00049589,120]
[358141228,1744765797436,-500.0,0.00049589,120]
[358141229,1744765797461,-500.0,0.00049589,120]
[358141230,1744765797487,-500.0,0.00049589,120]
[358141231,1744765797512,-500.0,0.00049589,120]
[358141232,1744765797538,-500.0,0.00049589,120]
[358141233,1744765797564,-500.0,0.00049589,120]
[358141234,1744765797591,-500.0,0.00049589,120]
[358141235,1744765797617,-500.0,0.00049589,120]
[358141236,1744765797643,-500.0,0.00049589,120]
[358141237,1744765797669,-500.0,0.00049589,120]
[358141238,1744765797697,-500.0,0.00049589,120]
[358141239,1744765797724,-500.0,0.00049589,120]
[358141240,1744765797752,-500.0,0.00049589,120]
[358141241,1744765797778,-500.0,0.00049589,120]
[358141242,1744765797804,-537.84263868,0.00049589,120]
[358141243,1744765797832,-500.0,0.00049589,120]
[358141244,1744765797874,-500.0,0.00049589,120]
[358141245,1744765797907,-500.0,0.00049589,120]
[358141246,1744765797938,-500.0,0.00049589,120]
[358141247,1744765797967,-500.0,0.00049589,120]
[358141248,1744765797997,-500.0,0.00049589,120]
[358141249,1744765798028,-500.0,0.00049589,120]
[358141250,1744765798056,-500.0,0.00049589,120]
[358141251,1744765798084,-500.0,0.00049589,120]
[358141252,1744765798112,-500.0,0.00049589,120]
[358141253,1744765798140,-500.0,0.00049589,120]
[358141254,1744765798168,-500.0,0.00049589,120]
[358141255,1744765798196,-500.0,0.00049589,120]
[358141256,1744765798224,-530.17981633,0.00049589,120]
[358141257,1744765798252,-500.0,0.00049589,120]
[358141258,1744765798280,-500.0,0.00049589,120]
[358141259,1744765798309,-500.0,0.00049589,120]
[358141260,1744765798336,-500.0,0.00049589,120]
[358141261,1744765798363,-1281.64,0.00049589,30]
[358141262,1744765798389,-500.0,0.00049589,120]
[358141263,1744765798417,-500.0,0.00049589,120]
[358141264,1744765798450,-500.0,0.00049589,120]
[358141265,1744765798478,-500.0,0.00049589,120]
[358141266,1744765798506,-500.0,0.00049589,120]
[358141268,1744765798534,-500.0,0.00049589,120]
[358141270,1744765798561,-500.0,0.00049589,120]
[358141271,1744765798589,-500.0,0.00049589,120]
[358141272,1744765798617,-2533.53,0.00049589,90]
[358141273,1744765798645,-500.0,0.00049589,120]
[358141274,1744765798674,-500.0,0.00049589,120]
[358141275,1744765798704,-500.0,0.00049589,120]
[358141276,1744765798733,-500.0,0.00049589,120]
[358141277,1744765798760,-500.0,0.00049589,120]
[358141278,1744765798787,-222.06473727,0.00049589,120]
[358141279,1744765798814,-563.05,0.00049589,120]
[358141280,1744765798842,-500.0,0.00049589,120]
[358141281,1744765798869,-500.0,0.00049589,120]
[358141282,1744765798897,-500.0,0.00049589,120]
[358141283,1744765798925,-500.0,0.00049589,120]
[358141284,1744765798952,-500.0,0.00049589,120]
[358141285,1744765798980,-627.32,0.00049589,120]
[358141286,1744765799008,-500.0,0.00049589,120]
[358141287,1744765799035,-500.0,0.00049589,120]
[358141288,1744765799068,-500.0,0.00049589,120]
[358141289,1744765799097,-500.0,0.00049589,120]
[358141290,1744765799124,-500.0,0.00049589,120]
[358141291,1744765799150,-500.0,0.00049589,120]
[358141292,1744765799177,-513.89445482,0.00049589,120]
[358141293,1744765799204,-381.08957156,0.00049589,120]
[358141294,1744765799231,-500.0,0.00049589,120]
[358141295,1744765799258,-300.09506607,0.00049589,120]
[358141296,1744765799286,-500.0,0.00049589,120]
[358141297,1744765799313,-500.0,0.00049589,120]
[358141298,1744765799341,-500.0,0.00049589,120]
[358141299,1744765799368,-500.0,0.00049589,120]
[358141300,1744765799393,-1119.93,0.00049589,120]
[358141301,1744765799419,-500.0,0.00049589,120]
[358141302,1744765799445,-500.0,0.00049589,120]
[358141303,1744765799472,-500.0,0.00049589,120]
[358141304,1744765799498,-500.0,0.00049589,120]
[358141305,1744765799524,-2185.17,0.00049589,120]
[358141306,1744765799550,-500.0,0.00049589,120]
[358141307,1744765799576,-500.0,0.00049589,120]
[358141308,1744765799603,-1551.42,0.00049589,120]
[358141309,1744765799628,-521.22304761,0.00049589,120]
[358141310,1744765799655,-500.0,0.00049589,120]
[358141311,1744765799687,-852.17,0.00049589,120]
[358141312,1744765799714,-500.0,0.00049589,120]
[358141313,1744765799741,-1000.0,0.00049589,120]
[358141314,1744765799768,-500.0,0.00049589,120]
[358141315,1744765799796,-497.67971789,0.00049589,120]
[358141316,1744765799823,-500.0,0.00049589,120]
[358141317,1744765799855,-500.0,0.00049589,120]
[358141318,1744765799882,-818.1,0.00049589,120]
[358141319,1744765799909,-500.0,0.00049589,120]
[358141320,1744765799936,-500.0,0.00049589,30]
[358141321,1744765799963,-500.0,0.00049589,120]
[358141322,1744765800173,-500.0,0.00049589,120]
[358141323,1744765800203,-500.0,0.00049589,120]
[358141324,1744765800235,-500.0,0.00049589,120]
[358141325,1744765800266,-500.0,0.00049589,120]
[358141326,1744765800295,-500.0,0.00049589,120]
[358141327,1744765800323,-500.0,0.00049589,120]
[358141328,1744765800352,-587.4,0.00049589,120]
[358141329,1744765800379,-500.0,0.00049589,120]
[358141330,1744765800412,-500.0,0.00049589,120]
[358141331,1744765800462,-500.0,0.00049589,120]
[358141332,1744765800490,-500.0,0.00049589,120]
[358141333,1744765800517,-500.0,0.00049589,120]
[358141334,1744765800543,-556.69489764,0.00049589,120]
[358141335,1744765800570,-500.0,0.00049589,120]
[358141336,1744765800599,-500.0,0.00049589,120]
[358141337,1744765800627,-500.0,0.00049589,120]
[358141338,1744765800654,-511.33121703,0.00049589,120]
[358141339,1744765800682,-500.0,0.00049589,120]
[358141340,1744765800713,-500.0,0.00049589,120]
[358141341,1744765800742,-500.0,0.00049589,120]
[358141342,1744765800771,-500.0,0.00049589,120]
[358141343,1744765800799,-500.0,0.00049589,120]
[358141344,1744765800830,-500.0,0.00049589,120]
[358141345,1744765800860,-500.0,0.00049589,120]
[358141346,1744765800890,-500.0,0.00049589,120]
[358141347,1744765800917,-1000.0,0.00049589,120]
[358141348,1744765800944,-500.0,0.00049589,120]
[358141349,1744765800971,-500.0,0.00049589,120]
[358141350,1744765800998,-500.0,0.00049589,120]
[358141351,1744765801028,-500.0,0.00049589,120]
[358141352,1744765801055,-500.0,0.00049589,120]
[358141353,1744765801083,-500.0,0.00049589,120]
[358141354,1744765801111,-500.0,0.00049589,120]
[358141355,1744765801141,-500.0,0.00049589,120]
[358141356,1744765801168,-500.0,0.00049589,120]
[358141357,1744765801194,-2000.0,0.00049589,30]
[358141358,1744765801220,-500.0,0.00049589,120]
[358141359,1744765801247,-500.0,0.00049589,120]
[358141360,1744765801274,-500.0,0.00049589,120]
[358141361,1744765801305,-500.0,0.00049589,120]
[358141362,1744765801334,-500.0,0.00049589,120]
[358141363,1744765801360,-500.0,0.00049589,120]
[358141364,1744765801386,-500.0,0.00049589,120]
[358141365,1744765801412,-500.0,0.00049589,120]
[358141366,1744765801438,-500.0,0.00049589,120]
[358141367,1744765801466,-500.0,0.00049589,120]
[358141368,1744765801492,-500.0,0.00049589,120]
[358141369,1744765801518,-500.0,0.00049589,120]
[358141370,1744765801545,-500.0,0.00049589,120]
[358141371,1744765801572,-500.0,0.00049589,120]
[358141372,1744765801598,-500.0,0.00049589,120]
[358141373,1744765801624,-2769.0,0.00049589,35]
[358141374,1744765801651,-500.0,0.00049589,120]
[358141375,1744765801678,-500.0,0.00049589,120]
[358141376,1744765801706,-500.0,0.00049589,120]
[358141377,1744765801734,-500.0,0.00049589,120]
[358141378,1744765801762,-1000.0,0.00049589,120]
[358141379,1744765801787,-500.0,0.00049589,120]
[358141380,1744765801815,-500.0,0.00049589,120]
[358141381,1744765801842,-1231.0,0.00049589,120]
[358141382,1744765801869,-500.0,0.00049589,120]
[358141383,1744765801905,-500.0,0.00049589,120]
[358141384,1744765801937,-184.85822372,0.00049589,120]
[358141385,1744765801967,-500.0,0.00049589,120]
[358141386,1744765801996,-500.0,0.00049589,120]
[358141387,1744765802031,-500.0,0.00049589,120]
[358141388,1744765802061,-500.0,0.00049589,120]
[358141389,1744765802096,-500.0,0.00049589,120]
[358141390,1744765802126,-500.0,0.00049589,120]
[358141391,1744765802155,-500.0,0.00049589,120]
[358141392,1744765802183,-500.0,0.00049589,120]
[358141393,1744765802210,-500.0,0.00049589,120]
[358141394,1744765802241,-500.0,0.00049589,120]
[358141395,1744765802268,-500.0,0.00049589,120]
[358141396,1744765802294,-1986.36,0.00049589,120]
[358141397,1744765802320,-500.0,0.00049589,120]
[358141398,1744765802350,-500.0,0.00049589,120]
[358141399,1744765802376,-500.0,0.00049589,120]
[358141400,1744765802402,-500.0,0.00049589,120]
[358141401,1744765802428,-907.66,0.00049589,120]
[358141402,1744765802455,-454.7,0.00049589,120]
[358141403,1744765802485,-500.0,0.00049589,120]
[358141404,1744765802514,-500.0,0.00049589,120]
[358141405,1744765802541,-500.0,0.00049589,30]
[358141406,1744765802571,-500.0,0.00049589,120]
[358141407,1744765802601,-391.82,0.00049589,120]
[358141408,1744765802630,-380.01,0.00049589,120]
[358141409,1744765802658,-896.66,0.00049589,120]
[358141410,1744765802691,-500.0,0.00049589,120]
[358141411,1744765802722,-500.0,0.00049589,120]
[358141412,1744765802753,-500.0,0.00049589,120]
[358141413,1744765802783,-500.0,0.00049589,120]
[358141414,1744765802812,-922.97,0.00049589,120]
[358141415,1744765802843,-500.0,0.00049589,120]
[358141416,1744765802875,-500.0,0.00049589,120]
[358141417,1744765803057,-1285.45,0.00049589,120]
[358141418,1744765803091,-660.47,0.00049589,120]
[358141419,1744765803124,-500.0,0.00049589,120]
[358141420,1744765803156,-500.0,0.00049589,120]
[358141421,1744765803189,-1816.87,0.00049589,118]
[358141422,1744765803225,-500.0,0.00049589,120]
[358141423,1744765803258,-500.0,0.00049589,120]
[358141424,1744765803291,-665.4,0.00049589,120]
[358141425,1744765803321,-500.0,0.00049589,120]
[358141426,1744765803354,-500.0,0.00049589,120]
[358141427,1744765803385,-2921.02,0.00049589,120]
[358141428,1744765803416,-500.0,0.00049589,120]
[358141429,1744765803444,-500.0,0.00049589,120]
[358141430,1744765803475,-500.0,0.00049589,120]
[358141431,1744765803508,-500.0,0.00049589,120]
[358141432,1744765803540,-500.0,0.00049589,120]
[358141433,1744765803572,-500.0,0.00049589,120]
[358141434,1744765803608,-500.0,0.00049589,30]
[358141435,1744765803640,-500.0,0.00049589,120]
[358141436,1744765803671,-209.20103127,0.00049589,120]
[358141437,1744765803705,-500.0,0.00049589,120]
[358141438,1744765803736,-500.0,0.00049589,120]
[358141439,1744765803765,-363.56856463,0.00049589,120]
[358141440,1744765803796,-527.56,0.00049589,120]
[358141441,1744765803827,-500.0,0.00049589,120]
[358141442,1744765803856,-500.0,0.00049589,120]
[358141443,1744765803888,-500.0,0.00049589,120]
[358141444,1744765803917,-500.0,0.00049589,120]
[358141445,1744765803948,-500.0,0.00049589,120]
[358141446,1744765803979,-500.0,0.00049589,120]
[358141447,1744765804010,-500.0,0.00049589,120]
[358141448,1744765804041,-255.37,0.00049589,120]
[358141449,1744765804072,-500.0,0.00049589,120]
[358141450,1744765804105,-500.0,0.00049589,120]
[358141451,1744765804135,-500.0,0.00049589,120]
[358141452,1744765804165,-500.0,0.00049589,120]
[358141453,1744765804196,-500.0,0.00049589,120]
[358141454,1744765804230,-591.47,0.00049589,120]
[358141455,1744765804262,-944.37,0.00049589,120]
[358141456,1744765804297,-500.0,0.00049589,120]
[358141457,1744765804328,-500.0,0.00049589,120]
[358141458,1744765804361,-500.0,0.00049589,120]
[358141459,1744765804393,-500.0,0.00049589,120]
[358141460,1744765804431,-500.0,0.00049589,120]
[358141461,1744765804469,-500.0,0.00049589,120]
[358141462,1744765804519,-1386.92,0.00049589,120]
[358141463,1744765804560,-500.0,0.00049589,120]
[358141464,1744765804617,-500.0,0.00049589,120]
[358141465,1744765804654,-1181.75,0.00049589,120]
[358141466,1744765804695,-500.0,0.00049589,120]
[358141467,1744765804738,-1034.03,0.00049589,120]
[358141468,1744765804793,-500.0,0.00049589,120]
[358141469,1744765804827,-500.0,0.00049589,120]
[358141470,1744765804873,-169.90786973,0.00049589,120]
[358141471,1744765804914,-669.94,0.00049589,120]
[358141472,1744765804945,-500.0,0.00049589,120]
[358141473,1744765804974,-539.02597677,0.00049589,120]
[358141474,1744765805004,-500.0,0.00049589,120]
[358141475,1744765805035,-500.0,0.00049589,120]
[358141476,1744765805066,-510.61,0.00049589,120]
[358141477,1744765805095,-500.0,0.00049589,120]
[358141478,1744765805124,-1912.27,0.00049589,120]
[358141479,1744765805152,-500.0,0.00049589,120]
[358141480,1744765805181,-899.37,0.00049589,120]
[358141481,1744765805210,-500.0,0.00049589,120]
[358141482,1744765805238,-500.0,0.00049589,120]
[358141483,1744765805267,-500.0,0.00049589,120]
[358141484,1744765805295,-500.0,0.00049589,120]
[358141485,1744765805324,-500.0,0.00049589,120]
[358141486,1744765805354,-500.0,0.00049589,120]
[358141487,1744765805383,-1831.65,0.00049589,120]
[358141488,1744765805411,-500.0,0.00049589,120]
[358141489,1744765805442,-500.0,0.00049589,120]
[358141490,1744765805475,-500.0,0.00049589,120]
[358141491,1744765805505,-1505.73,0.00049589,120]
[358141492,1744765805534,-500.0,0.00049589,120]
[358141493,1744765805563,-500.0,0.00049589,120]
[358141494,1744765805592,-500.0,0.00049589,120]
[358141495,1744765805621,-1000.0,0.00049589,120]
[358141496,1744765805655,-535.1,0.00049589,120]
[358141497,1744765805684,-500.0,0.00049589,120]
[358141498,1744765805717,-500.0,0.00049589,120]
[358141499,1744765805746,-767.28,0.00049589,120]
[358141500,1744765805777,-687.0,0.00049589,120]
[358141501,1744765805807,-1013.49,0.00049589,120]
[358141502,1744765805837,-500.0,0.00049589,120]
[358141503,1744765805868,-500.97685524,0.00049589,120]
[358141504,1744765805899,-500.0,0.00049589,120]
[358141505,1744765805931,-500.0,0.00049589,120]
[358141506,1744765805962,-500.0,0.00049589,120]
[358141507,1744765805992,-500.0,0.00049589,120]
[358141508,1744765806024,-500.0,0.00049589,120]
[358141509,1744765806055,-1174.39,0.00049589,120]
[358141510,1744765806083,-305.77080733,0.00049591,30]
[358141511,1744765806283,-214.54507832,0.00049591,30]
[358141512,1744765806323,-150.0,0.00049606,30]
[358141513,1744765806359,-150.0,0.00049619,30]
[358141514,1744765806393,-150.0,0.00049619,30]
[358141515,1744765806427,-305.77080733,0.00049647,30]
[358141516,1744765806460,-214.54507832,0.00049647,30]